fUST/lending_fUST_20260307
["ID","MTS","AMOUNT","RATE_DAILY","PERIOD"]
[407862888,1772839952524,500.0,2e-05,2]
[407862889,1772839953125,500.0,2e-05,2]
[407862890,1772839953888,500.0,2e-05,2]
[407862891,1772839954637,500.0,2e-05,2]
[407862892,1772839955395,500.0,2e-05,2]
[407862893,1772839956197,500.0,2e-05,2]
[407862894,1772839956946,500.0,2e-05,2]
[407862895,1772839957706,500.0,2e-05,2]
[407862896,1772839958509,500.0,2e-05,2]
[407862897,1772839959268,500.0,2e-05,2]
[407862898,1772839960056,500.0,2e-05,2]
[407862899,1772839960817,500.0,2e-05,2]
[407862900,1772839961592,500.0,2e-05,2]
[407862901,1772839962338,500.0,2e-05,2]
[407862902,1772839963570,500.0,2e-05,2]
[407862903,1772839963914,500.0,2e-05,2]
[407862904,1772839964661,500.0,2e-05,2]
[407862905,1772839965407,500.0,2e-05,2]
[407862906,1772839966161,500.0,2e-05,2]
[407862907,1772839966918,500.0,2e-05,2]
[407862908,1772839967668,500.0,2e-05,2]
[407862909,1772839968419,500.0,2e-05,2]
[407862910,1772839969172,500.0,2e-05,2]
[407862911,1772839970294,500.0,2e-05,2]
[407862912,1772839971048,500.0,2e-05,2]
[407862913,1772839971809,500.0,2e-05,2]
[407862914,1772839972581,500.0,2e-05,2]
[407862915,1772839973335,500.0,2e-05,2]
[407862916,1772839974675,500.0,2e-05,2]
[407862917,1772839974831,500.0,2e-05,2]
[407862918,1772839975582,500.0,2e-05,2]
[407862919,1772839976338,500.0,2e-05,2]
[407862920,1772839977098,500.0,2e-05,2]
[407862921,1772839977848,500.0,2e-05,2]
[407862922,1772839978611,500.0,2e-05,2]
[407862923,1772839979357,500.0,2e-05,2]
[407862924,1772839980112,500.0,2e-05,2]
[407862925,1772839980862,500.0,2e-05,2]
[407862926,1772839981643,500.0,2e-05,2]
[407862927,1772839982395,500.0,2e-05,2]
[407862928,1772839983147,500.0,2e-05,2]
[407862929,1772839983915,500.0,2e-05,2]
[407862930,1772840050444,500.0,2e-05,2]
[407862931,1772840051629,500.0,2e-05,2]
[407862939,1772840283920,255.61,3.8e-06,2]
[407863185,1772841032155,-500.82288191,2.4e-05,2]
[407863187,1772841032167,-5000.0,2.424e-05,2]
[407863188,1772841032180,-372.23458782,2.461e-05,2]
[407863189,1772841032190,-300.0,2.542e-05,2]
[407863190,1772841032199,-300.0,2.542e-05,2]
[407863191,1772841032208,-1200.0,2.542e-05,2]
[407863192,1772841032219,-500.0,2.543e-05,2]
[407863193,1772841032229,-500.0,2.543e-05,2]
[407863194,1772841032238,-500.0,2.543e-05,2]
[407863196,1772841032248,-500.0,2.543e-05,2]
[407863198,1772841032258,-411.24463593,2.543e-05,2]
[407863210,1772841038395,-88.75536407,2.543e-05,2]
[407863211,1772841038404,-500.0,2.543e-05,2]
[407863212,1772841038413,-110.44985395,2.543e-05,2]
[407863213,1772841038424,-389.55014605,2.543e-05,2]
[407863214,1772841038433,-500.0,2.543e-05,2]
[407863215,1772841038442,-500.0,2.543e-05,2]
[407863216,1772841038451,-22171.40395452,2.562e-05,2]
[407863217,1772841038469,-1463.32666253,2.562e-05,2]
[407863244,1772841047170,-3037.00304111,2.536e-05,2]
[407863245,1772841047187,-1962.99695889,2.536e-05,2]
[407863246,1772841047196,-12830.9169968,2.562e-05,2]
[407863247,1772841148852,1370.0,2e-05,2]
[407863248,1772841172637,500.0,2e-05,2]
[407863249,1772841173375,500.0,2e-05,2]
[407863250,1772841174115,500.0,2e-05,2]
[407863251,1772841174867,500.0,2e-05,2]
[407863252,1772841175619,500.0,2e-05,2]
[407863253,1772841176378,500.0,2e-05,2]
[407863254,1772841177126,500.0,2e-05,2]
[407863255,1772841177884,500.0,2e-05,2]
[407863256,1772841179648,500.0,2e-05,2]
[407863257,1772841179717,500.0,2e-05,2]
[407863258,1772841180124,500.0,2e-05,2]
[407863259,1772841181108,500.0,2e-05,2]
[407863260,1772841181856,500.0,2e-05,2]
[407863261,1772841182618,500.0,2e-05,2]
[407863262,1772841183512,500.0,2e-05,2]
[407863263,1772841184122,373.9,2e-05,2]
[407863264,1772841251947,500.0,2e-05,2]
[407863265,1772841252914,500.0,2e-05,2]
[407863266,1772841253818,500.0,2e-05,2]
[407863267,1772841254588,500.0,2e-05,2]
[407863268,1772841255345,500.0,2e-05,2]
[407863269,1772841256106,500.0,2e-05,2]
[407863270,1772841256984,500.0,2e-05,2]
[407863271,1772841257620,500.0,2e-05,2]
[407863272,1772841258385,500.0,2e-05,2]
[407863273,1772841259169,500.0,2e-05,2]
[407863274,1772841259921,500.0,2e-05,2]
[407863275,1772841260656,500.0,2e-05,2]
[407863276,1772841261415,500.0,2e-05,2]
[407863277,1772841262492,500.0,2e-05,2]
[407863278,1772841262940,500.0,2e-05,2]
[407863279,1772841263695,500.0,2e-05,2]
[407863280,1772841264446,500.0,2e-05,2]
[407863281,1772841265553,500.0,2e-05,2]
[407863282,1772841266316,500.0,2e-05,2]
[407863283,1772841267707,500.0,2e-05,2]
[407863284,1772841267860,500.0,2e-05,2]
[407863285,1772841268595,500.0,2e-05,2]
[407863286,1772841269337,500.0,2e-05,2]
[407863287,1772841270080,500.0,2e-05,2]
[407863288,1772841271125,500.0,2e-05,2]
[407863289,1772841271574,500.0,2e-05,2]
[407863290,1772841272330,500.0,2e-05,2]
[407863291,1772841273085,500.0,2e-05,2]
[407863292,1772841273856,500.0,2e-05,2]
[407863293,1772841274605,500.0,2e-05,2]
[407863294,1772841275363,500.0,2e-05,2]
[407863531,1772842021684,10000.0,2e-05,2]
[407863634,1772842050880,200.0,0.00012046,120]
[407863688,1772842083829,178.93,3.8e-06,2]
[407863726,1772842205135,616.3069815,1.684e-05,2]
[407863779,1772842232336,-440.59813193,2.4e-05,2]
[407863781,1772842232347,-339.5419571,2.448e-05,2]
[407863784,1772842232359,-31.60980218,2.448e-05,2]
[407863785,1772842232370,-289.5596536,2.485e-05,2]
[407863786,1772842232379,-300.0,2.561e-05,2]
[407863787,1772842232389,-167.0,2.561e-05,2]
[407863788,1772842232398,-1200.0,2.561e-05,2]
[407863789,1772842232407,-1000.0,2.562e-05,2]
[407863790,1772842232417,-1000.0,2.562e-05,2]
[407863791,1772842232427,-1000.0,2.562e-05,2]
[407863792,1772842232436,-74.46535244,2.562e-05,2]
[407863793,1772842232447,-925.53464756,2.562e-05,2]
[407863794,1772842232456,-235.19043633,2.562e-05,2]
[407863795,1772842232468,-764.80956367,2.562e-05,2]
[407863796,1772842232478,-1000.0,2.562e-05,2]
[407863797,1772842232488,-348.94170333,2.562e-05,2]
[407863820,1772842238546,-419.79564,2.562e-05,2]
[407863836,1772842241067,-231.26265667,2.562e-05,2]
[407863837,1772842241076,-264.57758833,2.562e-05,2]
[407863838,1772842241122,-341.44406342,2.562e-05,2]
[407863839,1772842241134,-393.97834825,2.562e-05,2]
[407863840,1772842241144,-1000.0,2.562e-05,2]
[407863841,1772842241154,-1000.0,2.562e-05,2]
[407863842,1772842241163,-1000.0,2.562e-05,2]
[407863843,1772842241173,-34.46730745,2.562e-05,2]
[407863863,1772842243701,-470.31115789,2.562e-05,2]
[407863864,1772842243712,-495.22153466,2.562e-05,2]
[407863865,1772842243722,-824.67925746,2.562e-05,2]
[407863871,1772842246728,-307.33620286,2.536e-05,2]
[407863872,1772842246738,-175.32074254,2.562e-05,2]
[407863873,1772842246748,-727.13923864,2.562e-05,2]
[407863874,1772842246765,-272.86076136,2.562e-05,2]
[407863875,1772842246775,-1000.0,2.562e-05,2]
[407863876,1772842246784,-1000.0,2.562e-05,2]
[407863877,1772842246793,-953.56634507,2.562e-05,2]
[407863878,1772842246803,-5176.09584165,2.587e-05,2]
[407863926,1772842410759,200.0,9.792e-05,120]
[407863960,1772842755690,160.566908,1.684e-05,2]
[407864008,1772843102893,60244.6296189,1.684e-05,120]
[407864010,1772843130984,200.0,0.00011735,120]
[407864037,1772843424074,-478.43204766,2.27e-05,2]
[407864038,1772843424088,-412.36097136,2.27e-05,2]
[407864039,1772843424097,-478.43204766,2.293e-05,2]
[407864052,1772843431502,-2438.14284602,2.293e-05,2]
[407864054,1772843431511,-374.23492134,2.305e-05,2]
[407864056,1772843431520,-800.0,2.457e-05,2]
[407864058,1772843431529,-194.99014534,2.498e-05,2]
[407864060,1772843431540,-773.62206646,2.498e-05,2]
[407864062,1772843431551,-231.3877882,2.498e-05,2]
[407864064,1772843431560,-300.0,2.499e-05,2]
[407864066,1772843431570,-300.0,2.499e-05,2]
[407864068,1772843431579,-168.6122118,2.5e-05,2]
[407864240,1772843437819,-579.27041072,2.5e-05,2]
[407864241,1772843437828,-524.90051728,2.5e-05,2]
[407864242,1772843437840,-531.3626,2.5e-05,2]
[407864250,1772843440181,-608.52957578,2.5e-05,2]
[407864251,1772843440191,-1857.35745823,2.5e-05,2]
[407864252,1772843440200,-1948.70052202,2.5e-05,2]
[407864253,1772843440210,-160.0,2.55e-05,2]
[407864254,1772843440219,-539.782535,2.559e-05,2]
[407864255,1772843440229,-1658.9912731,2.559e-05,2]
[407864256,1772843440239,-160.0,2.56e-05,2]
[407864257,1772843440248,-158.87522579,2.6e-05,2]
[407864258,1772843440257,-176.45293652,2.6e-05,2]
[407864259,1772843440266,-173.32141398,2.6e-05,2]
[407864260,1772843440276,-178.34953237,2.6e-05,2]
[407864261,1772843440285,-164051.53997818,2.6e-05,2]
[407864262,1772843440295,-500.0,2.613e-05,2]
[407864263,1772843440305,-500.0,2.613e-05,2]
[407864264,1772843440314,-500.0,2.613e-05,2]
[407864265,1772843440324,-500.0,2.613e-05,2]
[407864266,1772843440333,-304.0373363,2.613e-05,2]
[407864267,1772843440342,-500.0,2.613e-05,2]
[407864268,1772843440352,-500.0,2.613e-05,2]
[407864269,1772843440361,-500.0,2.613e-05,2]
[407864270,1772843440370,-500.0,2.613e-05,2]
[407864271,1772843440380,-1957.856,2.615e-05,2]
[407864272,1772843440390,-72637.50167816,2.63e-05,2]
[407864279,1772843443512,-1107.9990059,2.63e-05,2]
[407864280,1772843445638,-2037.59909358,2.604e-05,2]
[407864281,1772843445647,-2746.47910894,2.63e-05,2]
[407864282,1772843445723,-10900.2259852,2.63e-05,2]
[407864302,1772843906840,20664.3787819,2e-05,2]
[407864336,1772844141902,658.0664497,1.499e-05,2]
[407864492,1772844624016,10000.0,0.000114,120]
[407864516,1772844631655,-159.81227606,2.068e-05,2]
[407864518,1772844631665,-251.29115087,2.271e-05,2]
[407864520,1772844631675,-297.0133583,2.302e-05,2]
[407864523,1772844631686,-85.44924658,2.302e-05,2]
[407864525,1772844631696,-1957.856,2.491e-05,2]
[407864526,1772844631705,-300.0,2.492e-05,2]
[407864528,1772844631715,-977.0,2.492e-05,2]
[407864530,1772844631724,-454.42107942,2.493e-05,2]
[407864532,1772844631735,-500.0,2.493e-05,2]
[407864535,1772844631746,-94.1057955,2.493e-05,2]
[407864536,1772844631759,-405.8942045,2.493e-05,2]
[407864539,1772844631769,-121.99462912,2.493e-05,2]
[407864541,1772844631780,-162.84167023,2.493e-05,2]
[407864543,1772844631789,-106.2455756,2.519e-05,2]
[407864545,1772844631801,-187.34249452,2.519e-05,2]
[407864547,1772844631810,-500.0,2.524e-05,2]
[407864549,1772844631818,-820.31892706,2.546e-05,2]
[407864551,1772844631829,-495.4,2.546e-05,2]
[407864553,1772844631840,-714.57774494,2.546e-05,2]
[407864555,1772844631850,-448.76976407,2.558e-05,2]
[407864617,1772844635026,10000.0,0.000114,120]
[407864621,1772844637833,-351.23023593,2.558e-05,2]
[407864623,1772844637843,-800.0,2.565e-05,2]
[407864625,1772844637851,-787.0,2.6e-05,2]
[407864627,1772844637861,-8780.136676,2.601e-05,2]
[407864629,1772844637870,-794.46382213,2.601e-05,2]
[407864631,1772844637879,-500.0,2.606e-05,2]
[407864633,1772844637888,-250.0,2.627e-05,2]
[407864635,1772844637898,-500.0,2.627e-05,2]
[407864637,1772844637908,-250.0,2.627e-05,2]
[407864639,1772844637917,-250.0,2.627e-05,2]
[407864641,1772844637926,-500.0,2.627e-05,2]
[407864643,1772844637935,-250.0,2.627e-05,2]
[407864645,1772844637944,-500.0,2.627e-05,2]
[407864647,1772844637953,-250.0,2.627e-05,2]
[407864649,1772844637962,-500.0,2.627e-05,2]
[407864651,1772844637971,-162.380719,2.627e-05,2]
[407864653,1772844637980,-250.0,2.627e-05,2]
[407864655,1772844637990,-168.3888056,2.627e-05,2]
[407864657,1772844637999,-500.0,2.627e-05,2]
[407864659,1772844638007,-250.0,2.627e-05,2]
[407864660,1772844638016,-174.61919141,2.627e-05,2]
[407864662,1772844638026,-500.0,2.627e-05,2]
[407864664,1772844638035,-250.0,2.627e-05,2]
[407864666,1772844638044,-181.08010149,2.627e-05,2]
[407864668,1772844638053,-500.0,2.627e-05,2]
[407864670,1772844638062,-250.0,2.627e-05,2]
[407864672,1772844638071,-500.0,2.627e-05,2]
[407864674,1772844638080,-187.78006525,2.627e-05,2]
[407864676,1772844638090,-250.0,2.627e-05,2]
[407864678,1772844638099,-500.0,2.627e-05,2]
[407864680,1772844638109,-194.72792766,2.627e-05,2]
[407864682,1772844638118,-250.0,2.627e-05,2]
[407864684,1772844638128,-500.0,2.627e-05,2]
[407864686,1772844638137,-201.93286099,2.627e-05,2]
[407864687,1772844638146,-250.0,2.627e-05,2]
[407864688,1772844638155,-500.0,2.627e-05,2]
[407864689,1772844638164,-209.40437684,2.627e-05,2]
[407864690,1772844638173,-250.0,2.627e-05,2]
[407864691,1772844638182,-2150.738,2.627e-05,2]
[407864692,1772844638191,-500.0,2.627e-05,2]
[407864693,1772844638201,-217.15233878,2.627e-05,2]
[407864694,1772844638210,-250.0,2.627e-05,2]
[407864695,1772844638220,-162.380719,2.627e-05,2]
[407864696,1772844638229,-500.0,2.627e-05,2]
[407864697,1772844638238,-225.18697532,2.627e-05,2]
[407864698,1772844638248,-250.0,2.627e-05,2]
[407864699,1772844638257,-500.0,2.627e-05,2]
[407864700,1772844638266,-233.51889341,2.627e-05,2]
[407864701,1772844638276,-250.0,2.627e-05,2]
[407864702,1772844638285,-500.0,2.627e-05,2]
[407864703,1772844638294,-242.15909246,2.627e-05,2]
[407864704,1772844638304,-250.0,2.627e-05,2]
[407864705,1772844638313,-500.0,2.627e-05,2]
[407864706,1772844638323,-251.11897888,2.627e-05,2]
[407864707,1772844638332,-250.0,2.627e-05,2]
[407864708,1772844638341,-500.0,2.627e-05,2]
[407864709,1772844638350,-260.4103811,2.627e-05,2]
[407864710,1772844638359,-250.0,2.627e-05,2]
[407864711,1772844638368,-500.0,2.627e-05,2]
[407864712,1772844638378,-270.0455652,2.627e-05,2]
[407864713,1772844638388,-250.0,2.627e-05,2]
[407864714,1772844638397,-280.03725112,2.627e-05,2]
[407864715,1772844638406,-290.39862941,2.627e-05,2]
[407864716,1772844638414,-301.1433787,2.627e-05,2]
[407864717,1772844638423,-250.0,2.627e-05,2]
[407864718,1772844638432,-537.6845,2.627e-05,2]
[407864719,1772844638441,-250.0,2.627e-05,2]
[407864720,1772844638450,-250.0,2.627e-05,2]
[407864721,1772844638458,-250.0,2.627e-05,2]
[407864722,1772844638471,-414.98460763,2.627e-05,2]
[407864723,1772844638480,-250.0,2.627e-05,2]
[407864724,1772844638489,-250.0,2.627e-05,2]
[407864725,1772844638498,-250.0,2.627e-05,2]
[407864727,1772844638507,-250.0,2.627e-05,2]
[407864728,1772844638516,-250.0,2.627e-05,2]
[407864729,1772844638525,-250.0,2.627e-05,2]
[407864731,1772844638534,-250.0,2.627e-05,2]
[407864733,1772844638545,-445.202766,2.627e-05,2]
[407864735,1772844638554,-250.0,2.627e-05,2]
[407864737,1772844638562,-250.0,2.627e-05,2]
[407864739,1772844638572,-384.58100976,2.627e-05,2]
[407864740,1772844638580,-237.88693024,2.629e-05,2]
[407864905,1772844640191,-562.11306976,2.629e-05,2]
[407864907,1772844640202,-500.0,2.63e-05,2]
[407864909,1772844640213,-500.0,2.63e-05,2]
[407864911,1772844640223,-500.0,2.63e-05,2]
[407864913,1772844640232,-417.51,2.639e-05,2]
[407864915,1772844640242,-800.0,2.679e-05,2]
[407864917,1772844640251,-800.0,2.695e-05,2]
[407864919,1772844640261,-444.0,2.702e-05,2]
[407864921,1772844640270,-476.09471924,2.725e-05,2]
[407864923,1772844640280,-151.0,2.74e-05,2]
[407864925,1772844640288,-151.0,2.74e-05,2]
[407864927,1772844640298,-151.0,2.741e-05,2]
[407864929,1772844640307,-420.0,2.741e-05,2]
[407864930,1772844640315,-638.0,2.917e-05,2]
[407864932,1772844640324,-2189.0,2.917e-05,2]
[407864934,1772844640334,-731.0,2.917e-05,2]
[407864936,1772844640343,-1391.0,2.917e-05,2]
[407864938,1772844640352,-254.284,2.917e-05,2]
[407864940,1772844640362,-434.0,2.917e-05,2]
[407864942,1772844640372,-1959.1133026,2.932e-05,2]
[407864945,1772844640381,-6256.79626936,3e-05,2]
[407864948,1772844640390,-151.0,3e-05,2]
[407864951,1772844640399,-1271.7723996,3e-05,2]
[407864954,1772844640408,-437.1372649,3.006e-05,2]
[407864956,1772844640418,-587.0,3.015e-05,2]
[407864958,1772844640427,-1000.0,3.041e-05,2]
[407864960,1772844640436,-1000.0,3.041e-05,2]
[407864962,1772844640446,-151.0,3.041e-05,2]
[407864965,1772844640456,-824.81239528,3.072e-05,2]
[407864968,1772844640469,-2230.315306,3.175e-05,2]
[407864969,1772844640478,-557.5788265,3.175e-05,2]
[407864971,1772844640487,-461.67526834,3.175e-05,2]
[407864973,1772844640496,-1000.0,3.178e-05,2]
[407864975,1772844640507,-1000.0,3.178e-05,2]
[407864977,1772844640516,-1000.0,3.178e-05,2]
[407864979,1772844640526,-823.0,3.316e-05,2]
[407864981,1772844640536,-1000.0,3.5e-05,2]
[407864983,1772844640545,-151.0,3.588e-05,2]
[407864985,1772844640555,-151.0,3.588e-05,2]
[407864987,1772844640565,-1472.29190798,3.588e-05,2]
[407864988,1772844640575,-1500.0,3.588e-05,2]
[407864990,1772844640584,-1152.0,3.648e-05,2]
[407864992,1772844640595,-3000.0,3.7e-05,30]
[407864994,1772844640605,-3000.0,3.71e-05,30]
[407864996,1772844640615,-3000.0,3.72e-05,30]
[407864998,1772844640625,-151.0,3.72e-05,2]
[407865000,1772844640634,-2312.83697232,3.723e-05,2]
[407865002,1772844640644,-578.20924308,3.723e-05,2]
[407865004,1772844640653,-478.75725327,3.723e-05,2]
[407865006,1772844640662,-1500.0,3.726e-05,2]
[407865008,1772844640671,-1500.0,3.726e-05,2]
[407865010,1772844640681,-1500.0,3.726e-05,2]
[407865011,1772844640690,-3000.0,3.73e-05,30]
[407865013,1772844640699,-3000.0,3.74e-05,30]
[407865015,1772844640710,-3000.0,3.75e-05,30]
[407865017,1772844640719,-3000.0,3.76e-05,30]
[407865019,1772844640729,-5932.88182548,3.762e-05,2]
[407865021,1772844640738,-151.0,3.762e-05,2]
[407865023,1772844640747,-3000.0,3.77e-05,30]
[407865025,1772844640756,-3000.0,3.78e-05,30]
[407865027,1772844640765,-3000.0,3.79e-05,30]
[407865029,1772844640775,-3000.0,3.8e-05,30]
[407865031,1772844640784,-1000.0,3.8e-05,2]
[407865032,1772844640793,-3000.0,3.81e-05,30]
[407865034,1772844640802,-3000.0,3.82e-05,30]
[407865036,1772844640811,-4862.648405,3.83e-05,30]
[407865038,1772844640821,-500.0,3.909e-05,2]
[407865059,1772844641129,-1580.95897613,3.91e-05,2]
[407865060,1772844641145,-1589.62551731,3.92e-05,2]
[407865061,1772844641155,-3647.0,3.95e-05,2]
[407865062,1772844641165,-2000.0,3.99e-05,2]
[407865063,1772844641174,-168.3888056,3.996e-05,2]
[407865065,1772844641186,-1000.0,4e-05,2]
[407865067,1772844641197,-1613.0,4.013e-05,2]
[407865070,1772844641208,-500.0,4.1e-05,2]
[407865072,1772844641218,-2000.0,4.136e-05,2]
[407865073,1772844641228,-500.0,4.19e-05,2]
[407865075,1772844641238,-500.0,4.19e-05,2]
[407865077,1772844641248,-2398.4119403,4.271e-05,2]
[407865079,1772844641257,-599.60298507,4.271e-05,2]
[407865081,1772844641267,-496.47127164,4.271e-05,2]
[407865083,1772844641276,-2000.0,4.274e-05,2]
[407865085,1772844641286,-1166.15054548,4.274e-05,2]
[407865087,1772844641295,-2000.0,4.274e-05,2]
[407865089,1772844641305,-451.30587375,4.302e-05,2]
[407865091,1772844641314,-2258.0,4.414e-05,2]
[407865093,1772844641324,-1000.0,4.457e-05,2]
[407865095,1772844641333,-2400.67970123,4.5e-05,2]
[407865097,1772844641343,-468.51,4.51e-05,2]
[407865099,1772844641353,-174.61919141,4.666e-05,2]
[407865101,1772844641362,-2500.0,4.684e-05,2]
[407865103,1772844641371,-253.19765038,4.699e-05,2]
[407865105,1772844641380,-1271.7723996,4.7e-05,2]
[407865107,1772844641389,-160.0,4.706e-05,3]
[407865109,1772844641400,-1000.0,4.738e-05,2]
[407865110,1772844641409,-1000.0,4.738e-05,2]
[407865112,1772844641419,-1000.0,4.763e-05,2]
[407865114,1772844641429,-1000.0,4.763e-05,2]
[407865117,1772844641439,-160.0,4.799e-05,4]
[407865119,1772844641449,-3000.0,4.8e-05,2]
[407865121,1772844641459,-2487.15318209,4.819e-05,2]
[407865122,1772844641472,-621.78829552,4.819e-05,2]
[407865124,1772844641481,-514.84070869,4.819e-05,2]
[407865127,1772844641491,-2500.0,4.822e-05,2]
[407865128,1772844641500,-2500.0,4.822e-05,2]
[407865130,1772844641511,-3162.0,4.855e-05,2]
[407865132,1772844641521,-160.0,4.893e-05,5]
[407865135,1772844641532,-109881.27644013,4.9e-05,2]
[407865480,1772844645862,-54716.84948391,4.9e-05,2]
[407865481,1772844645871,-2080.96709749,4.95e-05,10]
[407865482,1772844645881,-160.0,4.986e-05,6]
[407865483,1772844645891,-153.25,5e-05,2]
[407865484,1772844645901,-387.71203447,5e-05,2]
[407865485,1772844645910,-607.98010891,5e-05,2]
[407865486,1772844645919,-404.467475,5e-05,2]
[407865487,1772844645931,-2068.9745731,5e-05,2]
[407865488,1772844645940,-2473.44204808,5e-05,2]
[407865489,1772844645949,-2473.44204808,5e-05,2]
[407865490,1772844645958,-2473.44204808,5e-05,2]
[407865491,1772844645968,-1424.60296697,5e-05,2]
[407865492,1772844645979,-1048.83908111,5e-05,2]
[407865493,1772844645989,-500.0,5e-05,2]
[407865494,1772844645998,-519.80951767,5e-05,2]
[407865495,1772844646008,-500.0,5e-05,2]
[407865496,1772844646017,-500.08141873,5e-05,2]
[407865497,1772844646028,-500.0,5e-05,2]
[407865498,1772844646037,-223.18085862,5e-05,2]
[407865499,1772844646046,-430.43932846,5e-05,2]
[407865500,1772844646056,-1085.30427755,5e-05,2]
[407865501,1772844646064,-1085.30427755,5e-05,2]
[407865502,1772844646073,-1085.30427755,5e-05,2]
[407865503,1772844646082,-1085.30427755,5e-05,2]
[407865504,1772844646091,-1085.30427755,5e-05,2]
[407865505,1772844646100,-1085.30427755,5e-05,2]
[407865506,1772844646110,-1085.30427755,5e-05,2]
[407865507,1772844646119,-804.8270349,5e-05,2]
[407865534,1772845230953,-381.28930503,2.401e-05,2]
[407865536,1772845260299,-24.10950935,2.414e-05,2]
[407866279,1772845838006,-2893.00325413,2.206e-05,2]
[407866281,1772845838015,-299.84214982,2.228e-05,2]
[407866283,1772845838025,-1062.42075988,2.25e-05,2]
[407866285,1772845838034,-386.89123342,2.331e-05,2]
[407866287,1772845838043,-312.79,2.475e-05,2]
[407866289,1772845838053,-500.0,2.483e-05,2]
[407866291,1772845838062,-500.0,2.653e-05,2]
[407866293,1772845838072,-500.0,2.653e-05,2]
[407866295,1772845838081,-500.0,2.653e-05,2]
[407866297,1772845838091,-500.0,2.653e-05,2]
[407866300,1772845838101,-289.0,2.669e-05,2]
[407866302,1772845838111,-300.0,2.67e-05,2]
[407866303,1772845838120,-300.0,2.67e-05,2]
[407866306,1772845838129,-300.0,2.67e-05,2]
[407866308,1772845838138,-28793.63632153,2.671e-05,2]
[407866310,1772845838150,-1777.77376106,2.671e-05,2]
[407866312,1772845838160,-25338.13553057,2.671e-05,2]
[407866314,1772845838171,-60675.62142594,2.671e-05,2]
[407866377,1772845840535,-749.58,2.671e-05,2]
[407866378,1772845840546,-4721.02928109,2.671e-05,2]
[407866380,1772845840590,-1186.96651919,2.671e-05,2]
[407866383,1772845840601,-1910.6548244,2.671e-05,2]
[407866607,1772845843190,-3170.68801967,2.671e-05,2]
[407866618,1772845843297,-400.0,2.671e-05,2]
[407866628,1772845845940,-29819.26521371,2.671e-05,2]
[407866629,1772845846051,-3280.37278693,2.671e-05,2]
[407866630,1772845846062,-12612.73528517,2.671e-05,2]
[407866752,1772846653781,10000.0,0.000114,120]
[407866753,1772846662994,10000.0,0.000114,120]
[407866754,1772846671420,10000.0,0.000114,120]
[407866755,1772846680172,10000.0,0.000114,120]
[407866756,1772846690106,10000.0,0.000114,120]
[407866757,1772846700456,10000.0,0.000114,120]
[407866759,1772846713012,10000.0,0.000114,120]
[407866760,1772846720134,10000.0,0.000114,120]
[407866761,1772846727143,10000.0,0.000114,120]
[407866771,1772847024763,-1755.12389307,2.298e-05,2]
[407866796,1772847032035,-3244.87610693,2.298e-05,2]
[407866798,1772847032045,-233.506032,2.322e-05,2]
[407866800,1772847032054,-404.8567367,2.361e-05,2]
[407866802,1772847032063,-300.0,2.499e-05,2]
[407866804,1772847032073,-595.63860096,2.5e-05,2]
[407866805,1772847032082,-68.47396176,2.5e-05,2]
[407866808,1772847032095,-1216.09961899,2.5e-05,2]
[407866810,1772847032105,-1492.2046449,2.5e-05,2]
[407866812,1772847032114,-328.30475707,2.5e-05,2]
[407866814,1772847032128,-1100.01091344,2.5e-05,2]
[407866817,1772847032139,-2143.06709481,2.5e-05,2]
[407866820,1772847032148,-13.59520671,2.5e-05,2]
[407866822,1772847032160,-545.83712939,2.5e-05,2]
[407866825,1772847032177,-4601.1419258,2.5e-05,2]
[407866826,1772847032186,-1931.11545626,2.5e-05,2]
[407867165,1772847038181,-2712.137328,2.5e-05,2]
[407867166,1772847038222,-1021.8964253,2.5e-05,2]
[407867167,1772847038231,-951.52220765,2.5e-05,2]